Cogmind - Beta 10.2 @@@ ROGUE MODE // 2021.06.16 @ 17:24:28 // Halloween2019/Abominations Player: sentrybuster Result: Destroyed by Minor Abomination with Heavy Laser Performance ------------- Evolutions (3) 1500 Regions Visited (4) 800 Robots Destroyed (34) 170 Value Destroyed (1800) 1800 Prototype IDs (6) 120 Alien Tech Used (0) 0 Bonus (0) 0 TOTAL SCORE: 4390 Bonus ------- None Cogmind --------- Core Integrity 0/700 Matter 278/300 Energy 14/100 System Corruption 6% Temperature Cool (336) Movement Hovering (51) Location -7/Factory Parts ------- > --- POWER (1) -------- (None) > --- PROPULSION (4) --- Airjet Improved Airjet > --- UTILITY (5) ------ Improved Heat Sink Large Storage Unit Utility Shielding Hacking Suite > --- WEAPON (3) ------- Improved Light Cannon > --- INVENTORY (10) --- Light Treads Light Treads Maneuvering Thrusters Small Laser Heavy Particle Cannon Peak State ------------ > --- POWER ------------ Reinforced Deuterium Engine > --- PROPULSION ------- Aluminum Leg Improved Carbon-fiber Leg Wheel Compact Wheel > --- UTILITY ---------- Improved Heat Sink Large Storage Unit Utility Shielding Hacking Suite System Shield > --- WEAPON ----------- Heavy Particle Cannon Advanced Assault Cannon Grenade Launcher > --- INVENTORY -------- Ion Engine Ion Engine Light Treads Light Treads Maneuvering Thrusters Small Laser Heavy Particle Cannon Improved Light Cannon [Rating: 31] Favorites ----------- Power Ion Engine Engine Ion Engine Propulsion Aluminum Leg Treads Light Treads Leg Aluminum Leg Wheel Compact Wheel Hover Unit Airjet Utility Large Storage Unit Device Improved Heat Sink Storage Large Storage Unit Hackware System Shield Protection Utility Shielding Weapon Grenade Launcher Energy Gun Gatling Laser Energy Cannon Heavy Particle Cannon Ballistic Gun Assault Rifle Ballistic Cannon Improved Light Cannon Launcher Grenade Launcher Build | -11 -10 -9 -8 -7 ------- Run | Scr Mat Mat Mat Fac Slots Evolved 6 | . . 2 2 2 Power . | . . . . . Propulsion 2 | . . 1 1 . Utility 3 | . . 1 1 1 Weapon 1 | . . . . 1 Parts Attached 51 | 6 7 8 10 20 Power 6 | 1 . 2 . 3 Engine 6 | 1 . 2 . 3 Core . | . . . . . Reactor . | . . . . . Propulsion 22 | 2 4 1 4 11 Treads 2 | . . . 1 1 Leg 6 | . 2 1 1 2 Wheel 8 | 2 . . 2 4 Hover 6 | . 2 . . 4 Flight . | . . . . . Utility 8 | 1 1 2 3 1 Device 1 | . . . . 1 Storage 2 | 1 . 1 . . Processor . | . . . . . Hackware 2 | . . . 2 . Protection 3 | . 1 1 1 . Artifact . | . . . . . Weapon 15 | 2 2 3 3 5 Energy Gun 5 | 1 1 . . 3 Energy Cannon 1 | . . . 1 . Ballistic Gun 2 | 1 . 1 . . Ballistic Cannon 4 | . . 1 1 2 Launcher 3 | . 1 1 1 . Special Weapon . | . . . . . Impact Weapon . | . . . . . Slashing Weapon . | . . . . . Piercing Weapon . | . . . . . Special Melee Weapon . | . . . . . Unidentified Prototypes 4 | . . 1 . 3 Parts Lost 27 | . 4 1 5 17 Power 3 | . . . . 3 Propulsion 12 | . 3 . 2 7 Utility 3 | . . 1 1 1 Weapon 9 | . 1 . 2 6 Highest Loss Streak 8 | . 4 1 3 8 Average Slot Usage (%) 82 | . 79 88 90 76 Engine 8 | . 14 11 9 4 Treads 1 | . . . 5 . Leg 15 | . 14 33 22 3 Wheel 9 | . 7 . 6 14 Hover 1 | . 4 . . 1 Device 2 | . . . . 7 Storage 9 | . 14 11 9 7 Hackware 8 | . . . 10 12 Protection 8 | . 5 11 10 7 Energy Gun 4 | . 4 2 . 7 Energy Cannon 1 | . . . 4 1 Ballistic Gun 2 | . 4 4 3 . Ballistic Cannon 3 | . . 5 5 1 Launcher 4 | . 9 9 3 2 Naked Turns . | . . . . . Heaviest Build 49 | 13 16 31 32 49 Greatest Support 52 | 26 26 30 40 52 Greatest Overweight (x) 7 | . 1 1 1 7 Average Overweight (x) . | . . . . . Largest Inventory Capacity 12 | 6 6 12 10 10 Average Capacity 9 | 5 6 9 10 10 Most Carried 9 | 6 6 8 7 9 Average Carried 6 | 3 5 6 5 7 Final Capacity 10 | 6 6 10 10 10 Final Carried 7 | 6 6 7 7 5 Class Distribution -------------------- 54% | Mutant 28% | Scavenger-Mutant 13% | Hacker-Mutant Dominant Class ---------------- Mutant | -10/Materials Mutant | -9/Materials Mutant | -8/Materials Scavenger-Mutant | -7/Factory Resources | -11 -10 -9 -8 -7 ----------- Run | Scr Mat Mat Mat Fac Matter Collected 1369 | 176 140 372 443 238 Remotely . | . . . . . Salvage Created 1277 | 13 79 358 347 480 Parts 57 | 1 7 11 13 25 Haulers Intercepted 1 | . . . 1 . Recyclers Shooed 2 | . . 1 1 . Parts Field Recycled . | . . . . . Retrieved Matter . | . . . . . Parts Self-Destructed . | . . . . . Prevented . | . . . . . Kills | -11 -10 -9 -8 -7 ------- Run | Scr Mat Mat Mat Fac Combat Hostiles Destroyed 27 | . 2 9 6 10 Guns 9 | . 1 . . 8 Cannons 10 | . . 3 5 2 AOE 8 | . 1 6 1 . Classes Destroyed 9 | 1 2 2 2 2 Tunneler 1 | 1 . . . . Hauler 1 | . . . 1 . Recycler 2 | . . 1 1 . Watcher 1 | . . . 1 . Grunt 4 | . 1 2 1 . Sentry 1 | . . 1 . . Hunter 2 | . . . . 2 Abomination 20 | . 1 6 5 8 Anomaly 2 | . . . . 2 Best Kill Streak 5 | 1 1 5 3 3 Combat Bots Only 4 | . 1 4 2 2 Max Kills in Single Turn 1 | 1 1 1 1 1 Gunslinging . | . . . . . Exploded 1 | . 1 1 1 . Melee . | . . . . . Uniques/NPCs Destroyed . | . . . . . Combat | -11 -10 -9 -8 -7 -------- Run | Scr Mat Mat Mat Fac Damage Taken 3785 | . 453 329 618 2385 Core 991 | . 97 54 125 715 Absorbed by Shields . | . . . . . Core Remaining (%) 81 | 100 61 86 77 . Volleys Fired 139 | 3 15 29 48 44 Largest 3 | 2 2 2 2 3 Hottest 180 | 70 70 59 114 180 Shots Fired 228 | 6 17 44 82 79 Gun 112 | 6 9 15 26 56 Cannon 86 | . . 14 50 22 Launcher 30 | . 8 15 6 1 Special . | . . . . . Kinetic 117 | 3 7 29 65 13 Thermal 78 | 3 2 . 11 62 Explosive 30 | . 8 15 6 1 Electromagnetic 3 | . . . . 3 Robot Hit Streak 9 | 2 4 9 8 9 Robot Miss Streak 9 | 1 1 2 4 9 Penetration Max . | . . . . . Secondary Targets 1 | . . . . 1 Max Gunslinging Chain 1 | . . . . 1 Shots Hit Robots 143 | 3 7 28 51 54 Core Hits 83 | 1 4 24 20 34 Critical Hits 2 | . . . 2 . Critical Kills . | . . . . . Critical Parts Destroyed 1 | . . . 1 . Melee Attacks . | . . . . . Impact . | . . . . . Slashing . | . . . . . Piercing . | . . . . . Sneak Attacks . | . . . . . Combat Hostiles . | . . . . . Follow-up Attacks . | . . . . . Damage Inflicted 3493 | 39 133 881 986 1454 Guns 1234 | 39 95 89 153 858 Cannons 1306 | . . 185 680 441 Explosions 922 | . 34 607 153 128 Melee . | . . . . . Ramming 31 | . 4 . . 27 Kinetic 1254 | 26 65 274 634 255 Thermal 1372 | 13 30 . 199 1130 Explosive 832 | . 34 607 153 38 Electromagnetic 4 | . . . . 4 Impact . | . . . . . Slashing . | . . . . . Piercing . | . . . . . Highest Corruption 6 | . . 5 . 6 Average Corruption 3 | . . 5 . 2 Corruption Purged . | . . . . . Effects 6 | . . 3 . 3 Message Errors 1 | . . . . 1 Matter Fused 3 | . . 1 . 2 Data Loss (minor) 1 | . . 1 . . Targeting Errors 1 | . . 1 . . Overload Shots . | . . . . . Overflow Damage 130 | . 2 17 69 42 Projectiles 74 | . . . 59 15 Explosions 56 | . 2 17 10 27 Melee . | . . . . . Knockbacks 8 | . . . 6 2 Impact . | . . . . . Kinetic 8 | . . . 6 2 Secondary . | . . . . . Self-Inflicted Damage 321 | . 44 . 53 224 Shots 8 | . 3 . 2 3 Rammed 4 | . . . . 4 Targets Rammed 5 | . 1 . . 4 Kicked 1 | . 1 . . . Crushed . | . . . . . Highest Temperature 1141 | 27 24 46 319 1141 Average Temperature 207 | 14 11 28 170 251 Received Heat Transfer 362 | . 60 99 77 126 Effects 17 | . . . . 17 Shutdowns 2 | . . . . 2 Interference 2 | . . . . 2 Matter Decay 1 | . . . . 1 Short Circuit 3 | . . . . 3 Damage (minor) 2 | . . . . 2 Damage (major) 6 | . . . . 6 Damage (core) 1 | . . . . 1 Siege Activations . | . . . . . Robots Corrupted . | . . . . . Combat Hostiles . | . . . . . Parts Fried . | . . . . . Impact Corruptions . | . . . . . Robots Melted . | . . . . . Combat Hostiles . | . . . . . Parts Melted 1 | . . . . 1 Heat Transferred 955 | 37 18 . 147 753 Parts Sabotaged . | . . . . . Parts Stolen . | . . . . . Parts Stripped . | . . . . . Power Chain Reactions 1 | . . . . 1 Missiles Intercepted . | . . . . . Alert | -11 -10 -9 -8 -7 ------- Run | Scr Mat Mat Mat Fac Peak Influence 153 | 5 20 153 152 136 Initial 59 | . 3 8 59 6 Average 43 | . 12 63 74 28 Maximum Alert Level . | . . . . . Low Security (%) 100 | 100 100 100 100 100 Level 1 . | . . . . . Level 2 . | . . . . . Level 3 . | . . . . . Level 4 . | . . . . . Level 5 . | . . . . . High Security . | . . . . . Max Security . | . . . . . Squads Dispatched 27 | . 3 4 3 17 Investigation 7 | . 2 2 1 2 Extermination . | . . . . . Reinforcement 8 | . 1 2 2 3 Assault 5 | . . . . 5 Garrison 7 | . . . . 7 Intercept . | . . . . . Construction Impeded . | . . . . . Haulers Reinforced 1 | . . . . 1 Stealth | -11 -10 -9 -8 -7 --------- Run | Scr Mat Mat Mat Fac Distress Signals 20 | . 2 6 4 8 Communications Jammed . | . . . . . Distress Signals . | . . . . . Times Spotted 57 | . 3 12 14 28 Peak Tracking Total 16 | . 3 4 6 16 Tactical Retreats 8 | . . 2 2 4 Traps | -11 -10 -9 -8 -7 ------- Run | Scr Mat Mat Mat Fac Traps Triggered 1 | . 1 . . . Indirectly . | . . . . . Trap Hack Attempts . | . . . . . Triggered . | . . . . . Disarmed . | . . . . . Reprogrammed . | . . . . . Reused . | . . . . . Traps Extracted . | . . . . . Installed . | . . . . . Triggered 1 | . . 1 . . Machines | -11 -10 -9 -8 -7 ---------- Run | Scr Mat Mat Mat Fac Machines Disabled 7 | . . 1 2 4 Max in Single Turn 4 | . . 1 1 4 Garrison Access 1 | . . . . 1 Machines Sabotaged . | . . . . . Garrisons Compromised . | . . . . . Overloaded Fab Kills . | . . . . . Fab Network Shutdowns . | . . . . . Hacking | -11 -10 -9 -8 -7 --------- Run | Scr Mat Mat Mat Fac Machines Accessed 8 | . 4 . . 4 Terminals 8 | . 4 . . 4 Fabricators . | . . . . . Repair Stations . | . . . . . Recycling Units . | . . . . . Scanalyzers . | . . . . . Garrison Access . | . . . . . Total Hacks 21 | . 9 . . 12 Successful 16 | . 7 . . 9 Failed 5 | . 2 . . 3 Catastrophic . | . . . . . Database Lockouts . | . . . . . Manual 15 | . 7 . . 8 Terminals 21 | . 9 . . 12 Fabricators . | . . . . . Repair Stations . | . . . . . Recycling Units . | . . . . . Scanalyzers . | . . . . . Garrison Access . | . . . . . Terminal Hacks 10 | . 4 . . 6 Prototype ID Bank 1 | . . . . 1 Terminal Index 1 | . . . . 1 Alert Level 3 | . 1 . . 2 Locate Traps 1 | . 1 . . . Zone Layout 4 | . 2 . . 2 Fabricator Hacks . | . . . . . Repair Station Hacks . | . . . . . Recycling Unit Hacks . | . . . . . Scanalyzer . | . . . . . Garrison Access Hacks . | . . . . . Unauthorized Hacks 6 | . 3 . . 3 Terminals 6 | . 3 . . 3 Track 5 | . 2 . . 3 Disrupt 1 | . 1 . . . Fabricators . | . . . . . Repair Stations . | . . . . . Recycling Units . | . . . . . Scanalyzers . | . . . . . Garrison Access . | . . . . . Data Cores Recovered . | . . . . . Used . | . . . . . Hacking Detections 7 | . 3 . . 4 Full Trace Events . | . . . . . Feedback Events . | . . . . . Feedback Blocked . | . . . . . Robot Schematics Acquired . | . . . . . Robots Built . | . . . . . Matter . | . . . . . Time . | . . . . . Total Robot Build Rating . | . . . . . Part Schematics Acquired . | . . . . . Parts Built . | . . . . . Matter . | . . . . . Time . | . . . . . Total Part Build Rating . | . . . . . Parts Repaired . | . . . . . Time . | . . . . . Parts Recycled . | . . . . . Recycled Matter . | . . . . . Retrieved Matter . | . . . . . Retrieved Components . | . . . . . Parts Scanalyzed . | . . . . . Part Schematics Acquired . | . . . . . Parts Damaged . | . . . . . Bothacking | -11 -10 -9 -8 -7 ------------ Run | Scr Mat Mat Mat Fac Used RIF Installer . | . . . . . Robots Hacked . | . . . . . Non-combat . | . . . . . Combat . | . . . . . Robot Hacks Applied . | . . . . . Relay Couplers Released 1 | . . . . 1 Machine Destruction 1 | . . . . 1 Robots Rewired . | . . . . . Allies Hacked . | . . . . . Hacks Repelled . | . . . . . Allies | -11 -10 -9 -8 -7 -------- Run | Scr Mat Mat Mat Fac Total Allies . | . . . . . Largest Group . | . . . . . Highest-Rated Group . | . . . . . Highest-Rated Ally . | . . . . . Total Orders . | . . . . . Ally Attacks . | . . . . . Total Damage . | . . . . . Kills . | . . . . . Allies Corrupted . | . . . . . Allies Melted . | . . . . . Intel | -11 -10 -9 -8 -7 ------- Run | Scr Mat Mat Mat Fac Robot Analysis Total . | . . . . . Derelict Logs Recovered . | . . . . . Drone Launches . | . . . . . Drone Recoveries . | . . . . . Exploration | -11 -10 -9 -8 -7 ------------- Run | Scr Mat Mat Mat Fac Turns Passed 1679 | 63 229 250 470 667 Spaces Moved 1112 | 43 183 125 231 530 Core 3 | 2 . . . 1 Treads 7 | . . . . 7 Legs 385 | . 81 125 178 1 Wheels 542 | 41 53 . 53 395 Hover 175 | . 49 . . 126 Flight . | . . . . . Fastest Speed 50 | 50 56 120 100 51 Average Speed 104 | 90 98 128 132 89 Slowest Speed 400 | 100 150 150 150 400 Overloaded Moves . | . . . . . Propulsion Burnouts . | . . . . . Robots Hopped . | . . . . . Cave-ins Triggered . | . . . . . Exploration Rate (%) 21 | 4 32 18 34 18 Regions Visited 4 Branch Regions . Pre-discovered Areas . | . . . . . Known Exits Taken . | . . . . . Unknown Exits Taken 4 | 1 1 1 1 . Scrap Searched . | . . . . . Spaces Dug 43 | . 43 . . . Terrain Destroyed 193 | . 53 57 50 33 Melee . | . . . . . Projectile 5 | . . . 4 1 AOE 188 | . 53 57 46 32 Terrain Rammed . | . . . . . Walls Destroyed . | . . . . . Machines Disabled . | . . . . . Actions | -11 -10 -9 -8 -7 --------- Run | Scr Mat Mat Mat Fac Total 1362 | 58 212 170 311 611 Wait 29 | . 3 2 18 6 Move 1108 | 42 182 124 230 530 Hop . | . . . . . Pick Up 14 | 7 1 . 3 3 Fast Attach 32 | 5 6 5 6 10 Attach 16 | 1 1 2 3 9 Detach 11 | . 1 5 1 4 Swap 3 | . . 1 1 1 Drop 5 | . 2 2 1 . Fire 139 | 3 15 29 48 44 Melee . | . . . . . Ram 4 | . . . . 4 Kick 1 | . 1 . . . Crush . | . . . . . Escape Stasis . | . . . . . Rewire . | . . . . . Trap . | . . . . . Miscellaneous . | . . . . . Route ------- -11/Scrapyard -10/Materials -9/Materials -8/Materials -7/Factory History --------- Turn | Location | Event 15 | -11/Scrapyard | Discovered new exit (range 15) 64 | -11/Scrapyard | Entered Materials 105 | -10/Materials | Discovered new exit (range 13) 193 | -10/Materials | Lost 4 parts (3n1w) 277 | -10/Materials | Discovered new exit (range 10) 293 | -10/Materials | Entered another Materials area 293 | -9/Materials | Evolved 2 slots: Propulsion x1, Utility x1 317 | -9/Materials | Build established: Mutant 539 | -9/Materials | Discovered new exit (range 4) 543 | -9/Materials | Entered another Materials area 543 | -8/Materials | Evolved 2 slots: Propulsion x1, Utility x1 743 | -8/Materials | Lost 3 parts (1n1u1w) 875 | -8/Materials | Discovered new exit (range 13) 1013 | -8/Materials | Entered Factory 1013 | -7/Factory | Evolved 2 slots: Utility x1, Weapon x1 1034 | -7/Factory | Garrison activated, responded to threat 1058 | -7/Factory | Garrison activated, responded to threat 1085 | -7/Factory | Garrison activated, responded to threat 1221 | -7/Factory | Lost 6 parts (1p3n2w) 1294 | -7/Factory | Garrison activated, responded to threat 1506 | -7/Factory | Garrison activated, responded to threat 1570 | -7/Factory | Core integrity fell below 50% 1617 | -7/Factory | Lost 8 parts (1p4n3w) 1678 | -7/Factory | Core integrity fell below 20% 1680 | -7/Factory | Destroyed by Minor Abomination with Heavy Laser Last Messages --------------- 01671_ Slammed into EM Anomaly. 01672_ Slammed into Minor Abomination. 01673_ Knocked back. 01674_ Zapped by an electromagnetic arc from EM Anomaly. 01674_ Lesser Abomination destroyed. 01675_ Minor Abomination absorbs Lgt. Ion Engine. 01677_ Matter Pump disabled. 01678_ Minor Abomination spits out Sml. Matter Pod. 01678_ Minor Abomination absorbs Med. Matter Pod. 01678_ The unstable cave ceiling collapses. 01678_ K-01 Serf collects debris. 01679_ Minor Abomination spits out Med. Matter Pod. 01679_ Minor Abomination feeds off Hungry Anomaly, taking Med. Matter Pod. 01679_ Lesser Abomination spits out Structural Scanner. 01679_ Lesser Abomination feeds off Hungry Anomaly, taking Structural Scanner. 01679_ Hungry Anomaly eats Sml. Storage Unit. 01680_ Lesser Abomination spits out Com. Wheel. 01680_ Lesser Abomination absorbs Wheel. 01680_ Hungry Anomaly eats Com. Wheel. Map ----- +----------------------------------------------------+ | + #??????" " # # #???????????? | | % # #??????" " # # """" #???????????? | | # #??????? " # # """" #???????????? | | ?# #??????? " # # """" #???????????? | | #### #??????? " # + """" #???????????? | | #??????? " " "" # # """" #???????????? | | #??????? "? "R"" # # """" #???????????? | | #????? " " """ # # "" #???????????? | | #????? % # # #???????????? | | % #????????????##### ######+#######???????? | | #####+#####????????????# #!# = #???????? | | ?# %% #????????????#% # # #???????? | | ?# ################# # #???????? | | ?# + % !%A# #???????? | | ?# % ##############AA !# #???????? | | ?# ## # AA##+###########???????? | | # ## # [n ?????????? | | # % ## ####???????????? | | # ## % A A #% #???????????? | | # #????? # #####??????????? | | ##########??????##+ # n n ?????????? | | ################## A n ?????????? | | + % % ?????????? | | # %% %% % ??????????? | | # ""%"% %"" """ "" ""??????????? | | + "F " """ @ """ """%"???????????? | | ##### """"" %%"" " """ ""??????????????? | | #???# % % %% ??????????????? | | ##!## k % % ????????????? | | % %#######+######### ???????????? | | ##### #????????????????????????????? | | ##???###############????????????????????????????? | | #???????????????????????????????????????????????? | | #???????????????????????????????????????????????? | | ##???????????????????????????????????????????????? | | ????????????????????????????????????????????????? | | ?????????????????????????????????????????????????? | | ?????????????????????????????????????????????????? | | ?????????????????????????????????????????????????? | | ?????????????????????????????????????????????????? | | ?????????????????????????????????????????????????? | | ?????????????????????????????????????????????????? | | ?????????????????????????????????????????????????? | | ?????????????????????????????????????????????????? | | ?????????????????????????????????????????????????? | | ?????????????????????????????????????????????????? | | ?????????????????????????????????????????????????? | | ?????????????????????????????????????????????????? | | ?????????????????????????????????????????????????? | | ?????????????????????????????????????????????????? | +----------------------------------------------------+ Best States ------------- Heat Dissipation 48 Energy Generation 16 Energy Capacity 290 Matter Stores 300 Matter Capacity 300 Sight Range 16 Terrain Scan Density 10 Armor Coverage 150 Utility Shielding 33 Evasion (%) 54 Recoil Reduction 1 Offensive Hacking 10 Defensive Hacking 10 Item Schematics ----------------- None Robot Schematics ------------------ None Fabricated ------------ Nothing Alien Tech Used ----------------- None Achievements -------------- None Challenges ------------ None Game ------ Seed MappingFlyingApparatus Manual? 0 Play Time 00:22:11 Cumulative 272.7 hours Start 2021.06.16 @ 17:02:04 End 2021.06.16 @ 17:24:28 Sessions 1 Manual Loads 0 Difficulty Rogue Special Mode Halloween2019/Abominations Game No. 365 Rogue 361 Adventurer 0 Explorer 4 Win Type - Total 5 Types 4/0/0/1/0/0/0/0/0 Lore% 80 Gallery% 89 Achievement% 62 Wizard Run 0 Options --------- ASCII 1 Keyboard 1 Movement Numpad Keybinds 0 Fullscreen 2 Font 16/K+Cog Map View 76x50 Tactical HUD 1 Map Filters NONE Filters NONE Steam 1 RUN: 7cf0bba3-fbc2-47ca-8d6f-cf1a355d4497